fUSD/lending_fUSD_20250504
["ID","MTS","AMOUNT","RATE_DAILY","PERIOD"]
[359842523,1746367844938,-450.0,0.00019753,2]
[359842524,1746367844947,-234.36,0.00019753,2]
[359842525,1746367844956,-450.0,0.00019753,2]
[359842526,1746367844965,-842.82,0.00019753,2]
[359842527,1746367844975,-16624.09,0.00019753,2]
[359842528,1746367844983,-450.0,0.00019753,2]
[359842529,1746367844993,-564.03,0.00019753,2]
[359842530,1746367845003,-450.0,0.00019753,2]
[359842531,1746367845012,-169.66584874,0.00019754,2]
[359842532,1746367845021,-207.21644802,0.00019754,2]
[359842533,1746367845030,-589.98642905,0.00019754,2]
[359842534,1746367845039,-165.99643371,0.00019759,2]
[359842535,1746367845049,-158.62819397,0.00019773,2]
[359842536,1746367845058,-166.0049904,0.00019773,2]
[359842537,1746367845067,-486.31580339,0.00019773,2]
[359842538,1746367845076,-500.0,0.00019773,2]
[359842539,1746367845085,-500.0,0.00019773,2]
[359842540,1746367845095,-500.0,0.00019773,2]
[359842541,1746367845104,-500.0,0.00019773,2]
[359842542,1746367845113,-545.87385494,0.00019773,2]
[359842543,1746367845122,-500.0,0.00019773,2]
[359842544,1746367845131,-500.0,0.00019773,2]
[359842545,1746367845141,-500.0,0.00019773,2]
[359842546,1746367845151,-359.79515288,0.00019773,2]
[359842547,1746367845160,-500.0,0.00019773,2]
[359842548,1746367845170,-500.99256753,0.00019773,2]
[359842549,1746367845179,-500.0,0.00019773,2]
[359842550,1746367845188,-500.0,0.00019773,2]
[359842551,1746367845197,-500.0,0.00019773,2]
[359842552,1746367845207,-500.0,0.00019773,2]
[359842553,1746367845215,-558.63313616,0.00019773,2]
[359842554,1746367845225,-500.0,0.00019773,2]
[359842555,1746367845235,-14682.43574675,0.00019777,2]
[359842556,1746367845245,-6562.97702978,0.00019778,2]
[359842557,1746367845255,-207.21644797,0.00019778,2]
[359842558,1746367845264,-500.0,0.00019779,2]
[359842559,1746367845273,-500.0,0.00019779,2]
[359842560,1746367845282,-500.0,0.00019779,2]
[359842561,1746367845291,-500.0,0.00019779,2]
[359842562,1746367845301,-500.0,0.00019779,2]
[359842563,1746367845311,-186.21126689,0.00019779,2]
[359842564,1746367845320,-450.0,0.0001978,2]
[359842565,1746367845329,-450.0,0.0001978,2]
[359842566,1746367845339,-450.0,0.0001978,2]
[359842567,1746367845348,-450.0,0.0001978,2]
[359842568,1746367845359,-289.39,0.0001978,2]
[359842569,1746367845368,-524.59,0.0001978,2]
[359842570,1746367845377,-450.0,0.0001978,2]
[359842571,1746367845387,-450.0,0.0001978,2]
[359842572,1746367845396,-450.0,0.0001978,2]
[359842573,1746367845406,-450.0,0.0001978,2]
[359842574,1746367845415,-459.47,0.0001978,2]
[359842575,1746367845428,-450.0,0.0001978,2]
[359842576,1746367845438,-527.91,0.0001978,2]
[359842577,1746367845447,-450.0,0.0001978,2]
[359842578,1746367845457,-573.8,0.0001978,2]
[359842579,1746367845467,-450.0,0.0001978,2]
[359842580,1746367845476,-450.0,0.0001978,2]
[359842581,1746367845486,-450.0,0.0001978,2]
[359842582,1746367845496,-206.46,0.0001978,2]
[359842583,1746367845507,-450.0,0.0001978,2]
[359842584,1746367845516,-213.91,0.0001978,2]
[359842585,1746367845525,-450.0,0.0001978,2]
[359842586,1746367845535,-450.0,0.0001978,2]
[359842587,1746367845545,-490.14975957,0.0001978,2]
[359842588,1746367845555,-450.0,0.0001978,2]
[359842589,1746367845564,-450.0,0.0001978,2]
[359842590,1746367845574,-450.0,0.0001978,2]
[359842591,1746367845584,-450.0,0.0001978,2]
[359842592,1746367845593,-1318.74,0.0001978,2]
[359842593,1746367845603,-450.0,0.0001978,2]
[359842594,1746367845612,-450.0,0.0001978,2]
[359842595,1746367845621,-228.41,0.0001978,2]
[359842596,1746367845631,-450.0,0.0001978,2]
[359842597,1746367845640,-450.0,0.0001978,2]
[359842598,1746367845650,-490.0,0.0001978,2]
[359842599,1746367845660,-462.07,0.0001978,2]
[359842600,1746367845670,-580.05,0.0001978,2]
[359842601,1746367845680,-450.0,0.0001978,2]
[359842602,1746367845690,-450.0,0.0001978,2]
[359842603,1746367845699,-578.79,0.0001978,2]
[359842604,1746367845709,-490.0,0.0001978,2]
[359842605,1746367845719,-450.0,0.0001978,2]
[359842606,1746367845729,-324.37,0.0001978,2]
[359842607,1746367845739,-450.0,0.0001978,2]
[359842608,1746367845749,-450.0,0.0001978,2]
[359842609,1746367845759,-221.34,0.0001978,2]
[359842610,1746367845769,-450.0,0.0001978,2]
[359842611,1746367845778,-450.0,0.0001978,2]
[359842612,1746367845788,-450.0,0.0001978,2]
[359842613,1746367845797,-971.1,0.0001978,2]
[359842614,1746367845807,-450.0,0.0001978,2]
[359842615,1746367845817,-354.18,0.0001978,2]
[359842616,1746367845827,-450.0,0.0001978,2]
[359842617,1746367845837,-3081.9,0.0001978,2]
[359842618,1746367845847,-450.0,0.0001978,2]
[359842619,1746367845857,-450.0,0.0001978,2]
[359842620,1746367845867,-2770.47,0.0001978,2]
[359842621,1746367845877,-450.0,0.0001978,2]
[359842622,1746367845887,-450.0,0.0001978,2]
[359842623,1746367845896,-749.23,0.0001978,2]
[359842624,1746367845905,-450.0,0.0001978,2]
[359842625,1746367845915,-450.0,0.0001978,2]
[359842626,1746367845925,-450.0,0.0001978,2]
[359842627,1746367845934,-450.0,0.0001978,2]
[359842628,1746367845944,-450.0,0.0001978,2]
[359842629,1746367845953,-453.02,0.0001978,2]
[359842630,1746367845963,-227.96,0.0001978,2]
[359842631,1746367845972,-30732.35,0.0001978,2]
[359842632,1746367845981,-450.0,0.0001978,2]
[359842633,1746367845991,-450.0,0.0001978,2]
[359842634,1746367846000,-263.24,0.0001978,2]
[359842635,1746367846009,-410.94,0.0001978,2]
[359842636,1746367846019,-598.99,0.0001978,2]
[359842637,1746367846028,-450.0,0.0001978,2]
[359842638,1746367846038,-450.0,0.0001978,2]
[359842639,1746367846047,-450.0,0.0001978,2]
[359842640,1746367846056,-510.11,0.0001978,2]
[359842641,1746367846067,-450.0,0.0001978,2]
[359842642,1746367846076,-1287.01,0.0001978,2]
[359842643,1746367846086,-450.0,0.0001978,2]
[359842644,1746367846095,-1416.49,0.0001978,2]
[359842645,1746367846104,-450.0,0.0001978,2]
[359842646,1746367846113,-1732.81,0.0001978,2]
[359842647,1746367846123,-519.64,0.0001978,2]
[359842648,1746367846132,-450.0,0.0001978,2]
[359842649,1746367846142,-450.0,0.0001978,2]
[359842650,1746367846152,-569.44,0.0001978,2]
[359842651,1746367846162,-514.35,0.0001978,2]
[359842652,1746367846173,-450.0,0.0001978,2]
[359842653,1746367846182,-450.0,0.0001978,2]
[359842654,1746367846192,-450.0,0.0001978,2]
[359842655,1746367846202,-450.0,0.0001978,2]
[359842656,1746367846212,-450.0,0.0001978,2]
[359842657,1746367846222,-450.0,0.0001978,2]
[359842658,1746367846232,-450.0,0.0001978,2]
[359842659,1746367846242,-450.0,0.0001978,2]
[359842660,1746367846251,-452.92,0.0001978,2]
[359842661,1746367846261,-1214.24,0.0001978,2]
[359842662,1746367846270,-584.49,0.0001978,2]
[359842663,1746367846280,-450.0,0.0001978,2]
[359842664,1746367846290,-1159.13,0.0001978,2]
[359842665,1746367846299,-450.0,0.0001978,2]
[359842666,1746367846309,-450.0,0.0001978,2]
[359842667,1746367846319,-450.0,0.0001978,2]
[359842668,1746367846329,-156.74,0.0001978,2]
[359842669,1746367846338,-450.0,0.0001978,2]
[359842670,1746367846348,-450.0,0.0001978,2]
[359842671,1746367846358,-742.88,0.0001978,2]
[359842672,1746367846368,-450.0,0.0001978,2]
[359842673,1746367846378,-565.28,0.0001978,2]
[359842674,1746367846388,-699.07,0.0001978,2]
[359842675,1746367846399,-550.09,0.0001978,2]
[359842676,1746367846408,-450.0,0.0001978,2]
[359842677,1746367846419,-842.82,0.0001978,2]
[359842678,1746367846430,-16624.09,0.0001978,2]
[359842679,1746367846439,-889.1740825,0.00019785,2]
[359842680,1746367846449,-165.99643371,0.00019794,2]
[359842681,1746367846459,-207.21644797,0.00019803,2]
[359842682,1746367846472,-556.17257505,0.00019807,2]
[359842683,1746367846481,-500.0,0.00019807,2]
[359842684,1746367846491,-450.0,0.00019808,2]
[359842685,1746367846501,-500.76,0.00019808,2]
[359842686,1746367846511,-450.0,0.00019808,2]
[359842687,1746367846521,-470.0,0.00019808,2]
[359842688,1746367846531,-524.59,0.00019808,2]
[359842689,1746367846541,-450.0,0.00019808,2]
[359842690,1746367846550,-450.0,0.00019808,2]
[359842691,1746367846560,-450.0,0.00019808,2]
[359842692,1746367846571,-450.0,0.00019808,2]
[359842693,1746367846580,-450.0,0.00019808,2]
[359842694,1746367846590,-527.91,0.00019808,2]
[359842695,1746367846600,-450.0,0.00019808,2]
[359842696,1746367846610,-450.0,0.00019808,2]
[359842697,1746367846620,-450.0,0.00019808,2]
[359842698,1746367846630,-430.87,0.00019808,2]
[359842699,1746367846641,-409.55,0.00019808,2]
[359842700,1746367846650,-450.0,0.00019808,2]
[359842701,1746367846660,-340.09,0.00019808,2]
[359842702,1746367846670,-450.0,0.00019808,2]
[359842703,1746367846680,-1318.74,0.00019808,2]
[359842704,1746367846690,-450.0,0.00019808,2]
[359842705,1746367846700,-450.0,0.00019808,2]
[359842708,1746367846710,-450.0,0.00019808,2]
[359842711,1746367846719,-450.0,0.00019808,2]
[359842714,1746367846728,-207.38,0.00019808,2]
[359842715,1746367846738,-450.0,0.00019808,2]
[359842718,1746367846747,-450.0,0.00019808,2]
[359842720,1746367846757,-450.0,0.00019808,2]
[359842721,1746367846767,-450.0,0.00019808,2]
[359842722,1746367846777,-450.0,0.00019808,2]
[359842723,1746367846787,-450.0,0.00019808,2]
[359842724,1746367846798,-971.1,0.00019808,2]
[359842725,1746367846808,-450.0,0.00019808,2]
[359842726,1746367846818,-450.0,0.00019808,2]
[359842727,1746367846827,-3081.9,0.00019808,2]
[359842728,1746367846837,-450.0,0.00019808,2]
[359842729,1746367846846,-450.0,0.00019808,2]
[359842730,1746367846856,-2770.47,0.00019808,2]
[359842731,1746367846866,-244.38,0.00019808,2]
[359842732,1746367846876,-450.0,0.00019808,2]
[359842733,1746367846885,-749.23,0.00019808,2]
[359842734,1746367846895,-450.0,0.00019808,2]
[359842735,1746367846904,-450.0,0.00019808,2]
[359842736,1746367846913,-450.0,0.00019808,2]
[359842737,1746367846923,-450.0,0.00019808,2]
[359842738,1746367846932,-450.0,0.00019808,2]
[359842739,1746367846942,-453.02,0.00019808,2]
[359842740,1746367846952,-30732.35,0.00019808,2]
[359842741,1746367846961,-450.0,0.00019808,2]
[359842742,1746367846971,-450.0,0.00019808,2]
[359842743,1746367846980,-450.0,0.00019808,2]
[359842744,1746367846990,-314.22,0.00019808,2]
[359842745,1746367847000,-450.0,0.00019808,2]
[359842746,1746367847010,-510.11,0.00019808,2]
[359842747,1746367847020,-450.0,0.00019808,2]
[359842748,1746367847029,-1287.01,0.00019808,2]
[359842749,1746367847039,-450.0,0.00019808,2]
[359842750,1746367847049,-1416.49,0.00019808,2]
[359842751,1746367847058,-450.0,0.00019808,2]
[359842752,1746367847068,-1732.81,0.00019808,2]
[359842753,1746367847077,-450.0,0.00019808,2]
[359842754,1746367847087,-173.06,0.00019808,2]
[359842755,1746367847096,-569.44,0.00019808,2]
[359842756,1746367847106,-514.35,0.00019808,2]
[359842757,1746367847115,-450.0,0.00019808,2]
[359842758,1746367847123,-450.0,0.00019808,2]
[359842759,1746367847132,-450.0,0.00019808,2]
[359842760,1746367847142,-450.0,0.00019808,2]
[359842761,1746367847151,-450.0,0.00019808,2]
[359842762,1746367847160,-450.0,0.00019808,2]
[359842763,1746367847169,-450.0,0.00019808,2]
[359842764,1746367847178,-450.0,0.00019808,2]
[359842765,1746367847187,-1214.24,0.00019808,2]
[359842766,1746367847197,-584.49,0.00019808,2]
[359842767,1746367847207,-1159.13,0.00019808,2]
[359842768,1746367847216,-450.0,0.00019808,2]
[359842769,1746367847226,-320.49748709,0.00019808,2]
[359842770,1746367847235,-450.0,0.00019808,2]
[359842771,1746367847244,-742.88,0.00019808,2]
[359842772,1746367847254,-450.0,0.00019808,2]
[359842773,1746367847263,-699.07,0.00019808,2]
[359842774,1746367847273,-550.09,0.00019808,2]
[359842775,1746367847283,-842.82,0.00019808,2]
[359842776,1746367847292,-16624.09,0.00019808,2]
[359842777,1746367847301,-6562.97702978,0.00019809,2]
[359842778,1746367847311,-6275.42959913,0.00019817,2]
[359842779,1746367847321,-207.21644797,0.00019827,2]
[359842780,1746367847330,-165.99643371,0.00019829,2]
[359842781,1746367847340,-152.347355,0.00019835,2]
[359842782,1746367847350,-162.617051,0.00019835,2]
[359842783,1746367847359,-151.0,0.00019835,2]
[359842784,1746367847368,-455.261025,0.00019835,2]
[359842785,1746367847378,-455.261025,0.00019835,2]
[359842786,1746367847387,-450.0,0.00019835,2]
[359842787,1746367847397,-450.0,0.00019835,2]
[359842788,1746367847407,-3849.44,0.00019835,2]
[359842789,1746367847417,-524.59,0.00019835,2]
[359842790,1746367847429,-357.51,0.00019835,2]
[359842791,1746367847438,-450.0,0.00019835,2]
[359842792,1746367847448,-450.0,0.00019835,2]
[359842793,1746367847459,-450.0,0.00019835,2]
[359842794,1746367847469,-274.9,0.00019835,2]
[359842795,1746367847478,-527.91,0.00019835,2]
[359842796,1746367847487,-450.0,0.00019835,2]
[359842797,1746367847497,-450.0,0.00019835,2]
[359842798,1746367847507,-450.0,0.00019835,2]
[359842799,1746367847517,-450.0,0.00019835,2]
[359842800,1746367847527,-528.18,0.00019835,2]
[359842801,1746367847537,-1318.74,0.00019835,2]
[359842802,1746367847546,-450.0,0.00019835,2]
[359842803,1746367847557,-298.79,0.00019835,2]
[359842804,1746367847567,-450.0,0.00019835,2]
[359842805,1746367847577,-343.62,0.00019835,2]
[359842806,1746367847586,-450.0,0.00019835,2]
[359842807,1746367847758,-595.11455112,0.00019835,2]
[359842808,1746367847768,-154.836575,0.00019835,2]
[359842809,1746367847779,-450.0,0.00019835,2]
[359842810,1746367847789,-151.0,0.00019835,2]
[359842811,1746367847799,-450.0,0.00019835,2]
[359842812,1746367847808,-151.0,0.00019835,2]
[359842813,1746367847818,-185.935986,0.00019835,2]
[359842814,1746367847828,-185.935986,0.00019835,2]
[359842815,1746367847838,-450.0,0.00019835,2]
[359842816,1746367847848,-152.660699,0.00019835,2]
[359842817,1746367847858,-151.0,0.00019835,2]
[359842818,1746367847869,-152.660699,0.00019835,2]
[359842819,1746367847879,-151.0,0.00019835,2]
[359842820,1746367847889,-151.0,0.00019835,2]
[359842821,1746367847899,-151.0,0.00019835,2]
[359842822,1746367847908,-151.0,0.00019835,2]
[359842823,1746367847918,-246.518105,0.00019835,2]
[359842824,1746367847928,-151.0,0.00019835,2]
[359842825,1746367847938,-450.0,0.00019835,2]
[359842826,1746367847948,-151.0,0.00019835,2]
[359842827,1746367847957,-971.1,0.00019835,2]
[359842828,1746367847967,-338.35,0.00019835,2]
[359842829,1746367847977,-239.78686,0.00019835,2]
[359842830,1746367847987,-450.0,0.00019835,2]
[359842831,1746367847997,-151.0,0.00019835,2]
[359842832,1746367848006,-3081.9,0.00019835,2]
[359842833,1746367848016,-450.0,0.00019835,2]
[359842834,1746367848025,-450.0,0.00019835,2]
[359842835,1746367848035,-2770.47,0.00019835,2]
[359842836,1746367848045,-151.0,0.00019835,2]
[359842837,1746367848055,-151.0,0.00019835,2]
[359842838,1746367848064,-151.0,0.00019835,2]
[359842839,1746367848074,-151.0,0.00019835,2]
[359842840,1746367848084,-151.0,0.00019835,2]
[359842841,1746367848094,-450.0,0.00019835,2]
[359842842,1746367848103,-151.0,0.00019835,2]
[359842843,1746367848113,-749.23,0.00019835,2]
[359842844,1746367848123,-450.0,0.00019835,2]
[359842845,1746367848133,-151.0,0.00019835,2]
[359842846,1746367848143,-450.0,0.00019835,2]
[359842847,1746367848152,-368.99337705,0.00019835,2]
[359842848,1746367848412,-81.00662295,0.00019835,2]
[359842849,1746367848426,-450.0,0.00019835,2]
[359842850,1746367848435,-453.02,0.00019835,2]
[359842851,1746367848445,-151.0,0.00019835,2]
[359842852,1746367848454,-2181.8647706,0.00019835,2]
[359842853,1746367848468,-478.546,0.00019835,2]
[359842854,1746367848480,-1614.82499983,0.00019835,2]
[359842855,1746367848491,-479.21597223,0.00019835,2]
[359842856,1746367848504,-487.52557497,0.00019835,2]
[359842857,1746367848672,-3000.0,0.00019835,2]
[359842858,1746367848684,-22490.37268237,0.00019835,2]
[359842859,1746367848695,-285.07273808,0.00019835,2]
[359842860,1746367848705,-488.82,0.00019835,2]
[359842861,1746367848715,-151.0,0.00019835,2]
[359842862,1746367848725,-151.0,0.00019835,2]
[359842863,1746367848735,-151.0,0.00019835,2]
[359842864,1746367848745,-151.0,0.00019835,2]
[359842865,1746367848756,-486.12,0.00019835,2]
[359842866,1746367848766,-477.27,0.00019835,2]
[359842867,1746367848776,-510.11,0.00019835,2]
[359842868,1746367848786,-450.0,0.00019835,2]
[359842869,1746367848795,-1287.01,0.00019835,2]
[359842870,1746367848805,-450.0,0.00019835,2]
[359842871,1746367848815,-1416.49,0.00019835,2]
[359842872,1746367848824,-245.05,0.00019835,2]
[359842873,1746367848834,-1732.81,0.00019835,2]
[359842874,1746367848845,-450.0,0.00019835,2]
[359842875,1746367848855,-569.44,0.00019835,2]
[359842876,1746367848865,-151.0,0.00019835,2]
[359842877,1746367848874,-514.35,0.00019835,2]
[359842878,1746367848883,-450.0,0.00019835,2]
[359842879,1746367848893,-372.68089543,0.00019835,2]
[359842880,1746367848903,-450.0,0.00019835,2]
[359842881,1746367848912,-450.0,0.00019835,2]
[359842882,1746367848921,-502.75,0.00019835,2]
[359842883,1746367848931,-275.37,0.00019835,2]
[359842884,1746367848940,-450.0,0.00019835,2]
[359842885,1746367848950,-304.07,0.00019835,2]
[359842886,1746367848959,-1214.24,0.00019835,2]
[359842887,1746367848969,-584.49,0.00019835,2]
[359842888,1746367848979,-1159.13,0.00019835,2]
[359842889,1746367848989,-151.0,0.00019835,2]
[359842890,1746367848998,-450.0,0.00019835,2]
[359842891,1746367849008,-151.0,0.00019835,2]
[359842892,1746367849017,-450.0,0.00019835,2]
[359842893,1746367849027,-151.0,0.00019835,2]
[359842894,1746367849036,-742.88,0.00019835,2]
[359842895,1746367849045,-151.0,0.00019835,2]
[359842896,1746367849055,-450.0,0.00019835,2]
[359842897,1746367849064,-699.07,0.00019835,2]
[359842898,1746367849074,-550.09,0.00019835,2]
[359842899,1746367849083,-214.481252,0.00019835,2]
[359842900,1746367849093,-158.184299,0.00019835,2]
[359842901,1746367849103,-151.0,0.00019835,2]
[359842902,1746367849112,-214.481252,0.00019835,2]
[359842903,1746367849123,-158.184299,0.00019835,2]
[359842904,1746367849133,-842.82,0.00019835,2]
[359842905,1746367849143,-311.905135,0.00019835,2]
[359842906,1746367849152,-16624.09,0.00019835,2]
[359842907,1746367849163,-311.905135,0.00019835,2]
[359842908,1746367849172,-151.0,0.00019835,2]
[359842909,1746367849182,-500.0,0.00019836,2]
[359842910,1746367849191,-161.756,0.00019839,2]
[359842911,1746367849201,-5347.00631212,0.00019839,2]
[359842912,1746367849376,-573.6648778,0.00019726,2]
[359842913,1746367849385,-293.7039075,0.00019726,2]
[359842914,1746367849395,-450.0,0.00019726,2]
[359842915,1746367849404,-314.27939054,0.00019839,2]
[359842916,1746367849415,-370.36866154,0.00019839,2]
[359842917,1746367849429,-531.32266558,0.00019839,2]
[359842918,1746367849438,-4772.69828871,0.00019843,2]
[359842919,1746367849453,-554.09,0.00019843,2]
[359842920,1746367849465,-1037.39624652,0.00019843,2]
[359842921,1746367849474,-151.0,0.00019843,2]
[359842922,1746367849483,-266.63818902,0.00019844,2]
[359842923,1746367849492,-207.21644797,0.00019851,2]
[359842924,1746367849501,-500.0,0.00019853,2]
[359842925,1746367849511,-500.0,0.00019853,2]
[359842926,1746367849520,-500.0,0.00019853,2]
[359842927,1746367849529,-500.0,0.00019853,2]
[359842928,1746367849539,-401.2242229,0.00019853,2]
[359842929,1746367849550,-14282.2161138,0.00019853,2]
[359842930,1746367849627,174.29202125,0.00019321,2]
[359842931,1746367849648,75.70797875,0.00019321,2]
[359842932,1746367849769,-450.0,0.00019726,2]
[359842933,1746367849779,-450.0,0.00019726,2]
[359842934,1746367849788,-450.0,0.00019726,2]
[359842935,1746367849797,-151.0,0.00019835,2]
[359842936,1746367849806,-1185.41,0.00019853,2]
[359842937,1746367849818,-107872.66468222,0.00019853,2]
[359842938,1746367849832,-579.999999,0.00019853,2]
[359842939,1746367849927,-286.43999999,0.00019853,2]
[359842940,1746368002476,1000.0,0.00018834,2]
[359842941,1746368011612,-167.8301629,0.00019541,2]
[359842942,1746368071677,-250.0,0.00019541,2]
[359842944,1746368105620,1619.74,0.00019,2]
[359842945,1746368107306,1304.55202125,0.00019,2]
[359842946,1746368107327,315.18797875,0.00019,2]
[359842947,1746368121891,158.3,0.00016712,2]
[359842948,1746368217746,166.78,0.00019361,2]
[359842949,1746368342511,3317.1709,0.0003,30]
[359842950,1746368359487,-206.28198214,0.00019526,2]
[359842951,1746368457336,274.05,0.0001869,2]
[359842952,1746368506486,1000.0,0.00030137,120]
[359842953,1746368562021,3085.68202125,0.00018691,2]
[359842954,1746368562047,4000.0,0.00018691,2]
[359842955,1746368562073,4000.0,0.00018691,2]
[359842956,1746368562098,4000.0,0.00018691,2]
[359842957,1746368562123,4000.0,0.00018691,2]
[359842958,1746368562148,4000.0,0.00018691,2]
[359842959,1746368562173,814.31797875,0.00018691,2]
[359842960,1746368564014,-246.94945882,0.0001951,2]
[359842961,1746368611696,-157.70735956,0.00019526,2]
[359842962,1746368619716,-300.26,0.00019526,2]
[359842963,1746368625923,-163.9893418,0.00019526,2]
[359842965,1746368666052,400.0,0.0003,30]
[359842966,1746368707299,716.1018588,0.000195,2]
[359842967,1746368728096,1200.12345402,0.00011,2]
[359842972,1746368767044,993.0133237,8e-05,2]
[359842975,1746368790845,1978.86497999,0.00015,2]
[359842976,1746368801243,1387.33,0.00016816,2]
[359842977,1746368801448,1387.33,0.0001908,2]
[359842987,1746368842292,207.14,0.00018722,2]
[359842990,1746368858886,220.28433428,0.00019439,2]
[359842993,1746368876833,8000.0,0.0001,2]
[359842995,1746368907532,378.89993349,7.888e-05,2]
[359843001,1746368922346,200.32,0.00018709,2]
[359843002,1746368922753,200.32,0.00018803,2]
[359843004,1746368926077,200.0,0.00018703,2]
[359843038,1746368988451,1385.68,0.00018693,2]
[359843039,1746369013162,156.95,0.00018686,2]
[359843040,1746369019471,500.0,0.00027945,30]
[359843041,1746369019739,500.0,0.00029315,35]
[359843052,1746369031423,-423.1641665,0.00019526,2]
[359843053,1746369031435,-581.61194208,0.00019526,2]
[359843054,1746369031533,-390.51651726,0.00019526,2]
[359843055,1746369031545,-282.52499996,0.00019526,2]
[359843056,1746369031641,-107.59137324,0.00019526,2]
[359843057,1746369031651,-250.0,0.00019526,2]
[359843058,1746369031661,-200.0,0.00019526,2]
[359843059,1746369031670,-194.99590181,0.00019526,2]
[359843060,1746369031680,-621.9567,0.00019526,2]
[359843061,1746369031690,-200.0,0.00019527,2]
[359843062,1746369031699,-1200.0,0.00019538,2]
[359843063,1746369031708,-300.0,0.00019539,2]
[359843064,1746369031717,-300.0,0.00019539,2]
[359843065,1746369031726,-500.0,0.0001954,2]
[359843066,1746369031735,-500.0,0.0001954,2]
[359843067,1746369031745,-500.0,0.0001954,2]
[359843068,1746369031754,-500.0,0.0001954,2]
[359843069,1746369031763,-500.0,0.0001954,2]
[359843070,1746369031772,-500.0,0.0001954,2]
[359843071,1746369031781,-500.0,0.0001954,2]
[359843073,1746369031790,-500.0,0.0001954,2]
[359843075,1746369031801,-500.0,0.0001954,2]
[359843077,1746369031813,-500.0,0.0001954,2]
[359843079,1746369031823,-500.0,0.0001954,2]
[359843081,1746369031832,-333.73131256,0.0001954,2]
[359843083,1746369031841,-500.0,0.0001954,2]
[359843085,1746369031851,-500.0,0.0001954,2]
[359843087,1746369031860,-500.0,0.0001954,2]
[359843089,1746369031869,-500.0,0.0001954,2]
[359843104,1746369032076,-500.0,0.0001954,2]
[359843105,1746369032086,-500.0,0.0001954,2]
[359843106,1746369032096,-500.0,0.0001954,2]
[359843107,1746369032106,-500.0,0.0001954,2]
[359843108,1746369032116,-500.0,0.0001954,2]
[359843109,1746369032126,-500.0,0.0001954,2]
[359843110,1746369032135,-500.0,0.0001954,2]
[359843111,1746369032144,-151.0,0.00019541,2]
[359843112,1746369032154,-582.1698371,0.00019541,2]
[359843113,1746369032163,-31705.65487529,0.00019541,2]
[359843114,1746369032179,-332.88675778,0.00019541,2]
[359843115,1746369032191,-349.4289,0.00019541,2]
[359843116,1746369032202,-5458.789198,0.00019541,2]
[359843118,1746369037403,-1196.599599,0.00019541,2]
[359843119,1746369037697,-438.75999884,0.00019541,2]
[359843318,1746369039767,-703.45638045,0.00019541,2]
[359843327,1746369039859,-63216.1640898,0.00019541,2]
[359843329,1746369039869,-1785.40899899,0.00019568,2]
[359843331,1746369039879,-1785.40899899,0.00019609,2]
[359843333,1746369039888,-304.8,0.00019616,3]
[359843335,1746369039898,-168.888782,0.00019626,2]
[359843337,1746369039908,-177.05047639,0.00019626,2]